[Event "NJSK 2021 Meisjes A&B"]
[Site "Almelo, Netherlands"]
[Date "2021.08.02"]
[Round "2.7"]
[White "Venema, Katja"]
[Black "Bogouslavskii, Veronique"]
[Result "1-0"]
[TimeControl "90min/40moves + 30sec/move"]
[WhiteElo "1356"]
[BlackElo "1207"]

1. d4 {[%clk 01:30:57]} {[%emt 00:00:02]} f5 {[%clk 01:30:56]} {[%emt
00:00:05]} 2. Nf3 {[%clk 01:31:13]} {[%emt 00:00:14]} Nf6 {[%clk 01:31:14]}
{[%emt 00:00:11]} 3. c4 {[%clk 01:31:21]} {[%emt 00:00:22]} g6 {[%clk
01:31:35]} {[%emt 00:00:09]} 4. g3 {[%clk 01:30:17]} {[%emt 00:01:33]} Bg7
{[%clk 01:31:49]} {[%emt 00:00:17]} 5. Bg2 {[%clk 01:30:09]} {[%emt 00:00:37]}
d6 {[%clk 01:32:07]} {[%emt 00:00:13]} 6. O-O {[%clk 01:28:58]} {[%emt
00:01:41]} O-O {[%clk 01:31:58]} {[%emt 00:00:40]} 7. Nc3 {[%clk 01:25:06]}
{[%emt 00:04:21]} Qe8 {[%clk 01:31:44]} {[%emt 00:00:44]} 8. Bf4 {[%clk
01:23:40]} {[%emt 00:01:56]} Na6 {[%clk 01:24:35]} {[%emt 00:07:40]} 9. Rb1
{[%clk 01:13:03]} {[%emt 00:11:07]} Qf7 {[%clk 01:14:59]} {[%emt 00:10:05]} 10.
b3 {[%clk 01:05:02]} {[%emt 00:08:32]} Bd7 {[%clk 01:07:15]} {[%emt 00:08:14]}
11. Ng5 {[%clk 01:02:52]} {[%emt 00:02:40]} Qe8 {[%clk 01:05:47]} {[%emt
00:01:58]} 12. Bxb7 {[%clk 01:00:27]} {[%emt 00:02:54]} h6 {[%clk 00:44:41]}
{[%emt 00:21:36]} 13. Nf3 {[%clk 01:00:11]} {[%emt 00:00:46]} g5 {[%clk
00:40:39]} {[%emt 00:04:33]} 14. Bd2 {[%clk 00:57:26]} {[%emt 00:03:14]} e5
{[%clk 00:39:03]} {[%emt 00:02:06]} 15. dxe5 {[%clk 00:52:56]} {[%emt
00:05:01]} dxe5 {[%clk 00:38:31]} {[%emt 00:01:02]} 16. Bxa6 {[%clk 00:51:37]}
{[%emt 00:01:49]} e4 {[%clk 00:13:01]} {[%emt 00:26:00]} 17. Nd4 {[%clk
00:48:06]} {[%emt 00:04:00]} Ng4 {[%clk 00:12:00]} {[%emt 00:01:31]} 18. Nc2
{[%clk 00:44:13]} {[%emt 00:04:23]} Qh5 {[%clk 00:11:51]} {[%emt 00:00:39]} 19.
h4 {[%clk 00:43:07]} {[%emt 00:01:36]} gxh4 {[%clk 00:11:25]} {[%emt 00:00:56]}
20. Bf4 {[%clk 00:41:53]} {[%emt 00:01:44]} hxg3 {[%clk 00:10:41]} {[%emt
00:01:14]} 21. Bxg3 {[%clk 00:41:09]} {[%emt 00:01:14]} f4 {[%clk 00:10:41]}
{[%emt 00:00:30]} 22. Qd5+ {[%clk 00:41:06]} {[%emt 00:00:32]} Qxd5 {[%clk
00:09:57]} {[%emt 00:01:15]} 23. Nxd5 {[%clk 00:41:25]} {[%emt 00:00:11]} fxg3
{[%clk 00:08:55]} {[%emt 00:01:32]} 24. fxg3 {[%clk 00:40:43]} {[%emt
00:01:12]} Be5 {[%clk 00:07:50]} {[%emt 00:01:36]} 25. Bb7 {[%clk 00:39:44]}
{[%emt 00:01:28]} Rae8 {[%clk 00:06:27]} {[%emt 00:01:53]} 26. Kg2 {[%clk
00:38:12]} {[%emt 00:02:02]} c6 {[%clk 00:06:25]} {[%emt 00:00:33]} 27. Rxf8+
{[%clk 00:37:30]} {[%emt 00:01:11]} Kxf8 {[%clk 00:06:33]} {[%emt 00:00:22]} 28.
Rf1+ {[%clk 00:37:06]} {[%emt 00:00:53]} Kg7 {[%clk 00:07:00]} {[%emt
00:00:04]} 29. Nde3 {[%clk 00:36:00]} {[%emt 00:01:36]} Nxe3+ {[%clk 00:07:11]}
{[%emt 00:00:19]} 30. Nxe3 {[%clk 00:36:19]} {[%emt 00:00:11]} Rb8 {[%clk
00:07:14]} {[%emt 00:00:28]} 31. Nf5+ {[%clk 00:35:42]} {[%emt 00:01:06]} Kh7
{[%clk 00:01:27]} {[%emt 00:06:17]} 32. Nd6 {[%clk 00:34:48]} {[%emt 00:01:24]}
Kg6 {[%clk 00:01:13]} {[%emt 00:00:44]} 33. Nf7 {[%clk 00:32:09]} {[%emt
00:03:09]} Bf6 {[%clk 00:00:37]} {[%emt 00:01:07]} 34. Nd6 {[%clk 00:31:51]}
{[%emt 00:00:47]} Be5 {[%clk 00:00:57]} {[%emt 00:00:10]} 35. Nf7 {[%clk
00:31:44]} {[%emt 00:00:37]} Bc3 {[%clk 00:01:15]} {[%emt 00:00:13]} 36. Ba6
{[%clk 00:31:19]} {[%emt 00:00:54]} Be6 {[%clk 00:01:02]} {[%emt 00:00:43]} 37.
Nd6 {[%clk 00:31:07]} {[%emt 00:00:42]} Be5 {[%clk 00:00:53]} {[%emt 00:00:39]}
38. c5 {[%clk 00:29:49]} {[%emt 00:01:48]} Rg8 {[%clk 00:00:39]} {[%emt
00:00:44]} 39. Bc4 {[%clk 00:29:22]} {[%emt 00:00:56]} Bxc4 {[%clk 00:01:06]}
{[%emt 00:00:04]} 40. Nxc4 {[%clk 00:29:39]} {[%emt 00:00:12]} Bd4 {[%clk
00:01:11]} {[%emt 00:00:24]} 41. b4 {[%clk 00:29:48]} {[%emt 00:00:23]} Bc3
{[%clk 00:01:14]} {[%emt 00:00:27]} 42. a3 {[%clk 00:29:52]} {[%emt 00:00:27]}
h5 {[%clk 00:00:50]} {[%emt 00:00:53]} 43. Rd1 {[%clk 00:28:58]} {[%emt
00:01:23]} Kf5 {[%clk 00:27:36]} {[%emt 00:03:44]} 44. Rf1+ {[%clk 00:56:42]}
{[%emt 00:02:46]} Ke6 {[%clk 00:26:20]} {[%emt 00:01:46]} 45. Nd6 {[%clk
00:55:55]} {[%emt 00:01:17]} Be5 {[%clk 00:25:12]} {[%emt 00:01:37]} 46. Nxe4
{[%clk 00:55:21]} {[%emt 00:01:05]} Bb2 {[%clk 00:25:21]} {[%emt 00:00:20]} 47.
Rf3 {[%clk 00:54:47]} {[%emt 00:01:05]} Rg4 {[%clk 00:19:46]} {[%emt 00:06:05]}
48. Nd6 {[%clk 00:53:43]} {[%emt 00:01:35]} Rg7 {[%clk 00:17:34]} {[%emt
00:02:39]} 49. Kf2 {[%clk 00:51:49]} {[%emt 00:02:26]} Bd4+ {[%clk 00:10:57]}
{[%emt 00:07:06]} 50. e3 {[%clk 00:51:00]} {[%emt 00:01:20]} Bb2 {[%clk
00:11:04]} {[%emt 00:00:24]} 51. Nc4 {[%clk 00:50:50]} {[%emt 00:00:40]} Bf6
{[%clk 00:10:09]} {[%emt 00:01:24]} 52. e4 {[%clk 00:49:27]} {[%emt 00:01:54]}
Bd4+ {[%clk 00:09:29]} {[%emt 00:01:11]} 53. Ke2 {[%clk 00:49:26]} {[%emt
00:00:30]} Rg4 {[%clk 00:08:00]} {[%emt 00:01:59]} 54. Kd3 {[%clk 00:49:07]}
{[%emt 00:00:49]} Bg1 {[%clk 00:06:29]} {[%emt 00:02:01]} 55. Na5 {[%clk
00:48:26]} {[%emt 00:01:12]} Bh2 {[%clk 00:06:00]} {[%emt 00:00:57]} 56. Nxc6
{[%clk 00:48:32]} {[%emt 00:00:25]} Rxg3 {[%clk 00:05:53]} {[%emt 00:00:38]} 57.
Rxg3 {[%clk 00:47:45]} {[%emt 00:01:16]} Bxg3 {[%clk 00:06:21]} {[%emt
00:00:01]} 58. Nd4+ {[%clk 00:47:50]} {[%emt 00:00:26]} Kd7 {[%clk 00:05:21]}
{[%emt 00:01:25]} 59. Ne2 {[%clk 00:47:15]} {[%emt 00:01:09]} Be5 {[%clk
00:05:40]} {[%emt 00:00:11]} 60. Ng1 {[%clk 00:47:02]} {[%emt 00:00:43]} h4
{[%clk 00:05:34]} {[%emt 00:00:37]} 61. Kc4 {[%clk 00:47:02]} {[%emt 00:00:29]}
Kc6 {[%clk 00:04:37]} {[%emt 00:01:27]} 62. b5+ {[%clk 00:46:50]} {[%emt
00:00:42]} Kc7 {[%clk 00:04:45]} {[%emt 00:00:22]} 63. Kd5 {[%clk 00:46:16]}
{[%emt 00:01:04]} Bf4 {[%clk 00:03:47]} {[%emt 00:01:28]} 64. e5 {[%clk
00:45:34]} {[%emt 00:01:12]} Be3 {[%clk 00:03:53]} {[%emt 00:00:23]} 65. Nh3
{[%clk 00:45:49]} {[%emt 00:00:16]} Kd7 {[%clk 00:03:04]} {[%emt 00:01:20]} 66.
c6+ {[%clk 00:44:57]} {[%emt 00:01:22]} Kd8 {[%clk 00:02:12]} {[%emt 00:01:22]}
67. Kd6 {[%clk 00:44:28]} {[%emt 00:00:58]} Bb6 {[%clk 00:02:30]} {[%emt
00:00:12]} 68. e6 {[%clk 00:43:43]} {[%emt 00:01:15]} Bc7+ {[%clk 00:02:50]}
{[%emt 00:00:10]} 69. Kd5 {[%clk 00:43:41]} {[%emt 00:00:31]} Ke7 {[%clk
00:03:19]} {[%emt 00:00:03]} 70. a4 {[%clk 00:43:43]} {[%emt 00:00:28]} Kf6
{[%clk 00:02:35]} {[%emt 00:01:14]} 71. Nf2 {[%clk 00:43:21]} {[%emt 00:00:52]}
Ke7 {[%clk 00:02:45]} {[%emt 00:00:20]} 72. Nh3 {[%clk 00:43:07]} {[%emt
00:00:44]} Kf6 {[%clk 00:03:05]} {[%emt 00:00:10]} 73. Ng5 {[%clk 00:37:34]}
{[%emt 00:06:01]} Ke7 {[%clk 00:03:04]} {[%emt 00:00:32]} 74. Ke4 {[%clk
00:36:40]} {[%emt 00:01:20]} Bd6 {[%clk 00:02:22]} {[%emt 00:01:16]} 75. Kf3
{[%clk 00:36:16]} {[%emt 00:00:53]} h3 {[%clk 00:02:36]} {[%emt 00:00:17]} 76.
Nxh3 {[%clk 00:35:56]} {[%emt 00:00:51]} Kxe6 {[%emt 00:00:03]} 77. Ke4 {[%clk
00:36:03]} {[%emt 00:00:21]} Bc5 {[%clk 00:02:26]} {[%emt 00:01:08]} 78. Ng5+
{[%clk 00:35:55]} {[%emt 00:00:38]} Kd6 {[%clk 00:01:50]} {[%emt 00:01:07]} 79.
Nf7+ {[%clk 00:35:58]} {[%emt 00:00:27]} Kc7 {[%clk 00:01:30]} {[%emt
00:00:50]} 80. Kd5 {[%clk 00:35:36]} {[%emt 00:00:51]} Be7 {[%clk 00:01:37]}
{[%emt 00:00:23]} 81. Ne5 {[%clk 00:34:57]} {[%emt 00:01:10]} Bb4 {[%clk
00:01:29]} {[%emt 00:00:38]} 82. Nc4 {[%clk 00:34:54]} {[%emt 00:00:33]} Be1
{[%clk 00:01:21]} {[%emt 00:00:38]} 83. Nd6 {[%clk 00:33:34]} {[%emt 00:01:49]}
Bb4 {[%clk 00:00:45]} {[%emt 00:01:06]} 84. Ne8+ {[%clk 00:33:30]} {[%emt
00:00:34]} Kc8 {[%clk 00:00:59]} {[%emt 00:00:16]} 85. c7 {[%clk 00:32:51]}
{[%emt 00:01:10]} Kd7 {[%clk 00:00:50]} {[%emt 00:00:38]} 86. Kc4 {[%clk
00:32:22]} {[%emt 00:00:59]} Ba5 {[%clk 00:01:01]} {[%emt 00:00:20]} 87. Kc5
{[%clk 00:32:31]} {[%emt 00:00:21]} Bb6+ {[%clk 00:00:59]} {[%emt 00:00:32]} 88.
Kb4 {[%clk 00:32:42]} {[%emt 00:00:19]} Kc8 {[%clk 00:00:35]} {[%emt 00:00:53]}
89. a5 {[%clk 00:32:39]} {[%emt 00:00:33]} Be3 {[%clk 00:00:44]} {[%emt
00:00:22]} 90. Kc4 {[%clk 00:32:21]} {[%emt 00:00:47]} Bf2 {[%clk 00:00:45]}
{[%emt 00:00:30]} 91. Kd5 {[%clk 00:32:03]} {[%emt 00:00:47]} Kd7 {[%clk
00:00:54]} {[%emt 00:00:21]} 92. Kc4 {[%clk 00:30:49]} {[%emt 00:01:44]} Kc8
{[%clk 00:01:12]} {[%emt 00:00:12]} 93. b6 {[%clk 00:30:14]} {[%emt 00:01:06]}
Bxb6 {[%clk 00:01:10]} {[%emt 00:00:32]} 94. axb6 {[%clk 00:30:33]} {[%emt
00:00:11]} axb6 {[%clk 00:01:38]} {[%emt 00:00:01]} 95. Kb4 {[%clk 00:29:54]}
{[%emt 00:01:10]} Kd7 {[%clk 00:00:38]} {[%emt 00:01:30]} 96. Kb5 {[%clk
00:30:03]} {[%emt 00:00:20]} Kc8 {[%clk 00:00:47]} {[%emt 00:00:21]} 97. Kxb6
{[%clk 00:30:23]} {[%emt 00:00:11]} 1-0

[Event "NJSK 2021 Meisjes A&B"]
[Site "Almelo, Netherlands"]
[Date "2021.08.03"]
[Round "3.1"]
[White "Ricken, Katharina"]
[Black "Maris, Evi"]
[Result "1-0"]
[TimeControl "90min/40moves + 30sec/move"]
[WhiteElo "2030"]
[BlackElo "1232"]

1. Nf3 {[%clk 01:30:59]} {[%emt 00:00:02]} d5 {[%clk 01:30:55]} {[%emt
00:00:06]} 2. g3 {[%clk 01:31:24]} {[%emt 00:00:04]} c5 {[%clk 01:31:14]}
{[%emt 00:00:11]} 3. Bg2 {[%clk 01:31:50]} {[%emt 00:00:04]} Nc6 {[%clk
01:31:35]} {[%emt 00:00:10]} 4. d4 {[%clk 01:32:15]} {[%emt 00:00:05]} Nf6
{[%clk 01:31:51]} {[%emt 00:00:13]} 5. O-O {[%clk 01:32:38]} {[%emt 00:00:06]}
Bg4 {[%clk 01:32:11]} {[%emt 00:00:10]} 6. dxc5 {[%clk 01:32:52]} {[%emt
00:00:17]} e5 {[%clk 01:32:24]} {[%emt 00:00:17]} 7. c4 {[%clk 01:33:02]}
{[%emt 00:00:20]} d4 {[%clk 01:32:26]} {[%emt 00:00:27]} 8. b4 {[%clk
01:33:20]} {[%emt 00:00:12]} e4 {[%clk 01:32:42]} {[%emt 00:00:14]} 9. b5
{[%clk 01:33:25]} {[%emt 00:00:25]} exf3 {[%clk 01:32:57]} {[%emt 00:00:15]} 10.
exf3 {[%emt 00:00:10]} Bd7 {[%clk 01:32:08]} {[%emt 00:01:16]} 11. bxc6 {[%clk
01:34:02]} {[%emt 00:00:17]} Bxc6 {[%clk 01:32:28]} {[%emt 00:00:10]} 12. Re1+
{[%clk 01:32:48]} {[%emt 00:01:44]} Be7 {[%clk 01:32:49]} {[%emt 00:00:10]} 13.
Bb2 {[%clk 01:32:49]} {[%emt 00:00:29]} O-O {[%clk 01:31:24]} {[%emt 00:01:55]}
14. Qxd4 {[%clk 01:31:21]} {[%emt 00:01:58]} Qc7 {[%clk 01:31:14]} {[%emt
00:00:40]} 15. Nc3 {[%clk 01:22:44]} {[%emt 00:09:07]} b6 {[%clk 01:30:26]}
{[%emt 00:01:18]} 16. cxb6 {[%clk 01:22:25]} {[%emt 00:00:48]} axb6 {[%clk
01:30:46]} {[%emt 00:00:09]} 17. Ne4 {[%clk 01:12:21]} {[%emt 00:10:34]} Rad8
{[%clk 01:26:34]} {[%emt 00:04:42]} 18. Qc3 {[%clk 01:11:23]} {[%emt 00:01:28]}
Rfe8 {[%clk 01:25:35]} {[%emt 00:01:29]} 19. Qc2 {[%clk 01:05:20]} {[%emt
00:06:33]} Bxe4 {[%clk 01:25:11]} {[%emt 00:00:54]} 20. fxe4 {[%clk 01:05:02]}
{[%emt 00:00:49]} b5 {[%clk 01:24:46]} {[%emt 00:00:56]} 21. Rec1 {[%clk
00:59:59]} {[%emt 00:05:32]} bxc4 {[%clk 01:24:57]} {[%emt 00:00:19]} 22. Qxc4
{[%clk 00:50:35]} {[%emt 00:09:53]} Rd1+ {[%clk 01:23:22]} {[%emt 00:02:05]} 23.
Bf1 {[%clk 00:50:47]} {[%emt 00:00:18]} Rxc1 {[%clk 01:23:35]} {[%emt
00:00:17]} 24. Rxc1 {[%clk 00:50:56]} {[%emt 00:00:21]} Qb7 {[%clk 01:23:43]}
{[%emt 00:00:22]} 25. Bxf6 {[%clk 00:32:21]} {[%emt 00:19:05]} Bxf6 {[%clk
01:23:43]} {[%emt 00:00:30]} 26. Qd5 {[%clk 00:26:45]} {[%emt 00:06:05]} Qb2
{[%clk 01:23:30]} {[%emt 00:00:43]} 27. Rc7 {[%clk 00:26:30]} {[%emt 00:00:45]}
Rf8 {[%clk 01:23:38]} {[%emt 00:00:22]} 28. Bc4 {[%clk 00:26:26]} {[%emt
00:00:35]} Qb8 {[%clk 01:22:05]} {[%emt 00:02:03]} 29. Rxf7 {[%clk 00:25:44]}
{[%emt 00:01:11]} Rxf7 {[%clk 01:22:26]} {[%emt 00:00:10]} 30. Qxf7+ {[%clk
00:26:13]} {[%emt 00:00:02]} Kh8 {[%clk 01:22:46]} {[%emt 00:00:10]} 31. Kg2
{[%clk 00:24:52]} {[%emt 00:01:50]} Bd4 {[%clk 01:22:43]} {[%emt 00:00:34]} 32.
a4 {[%clk 00:24:31]} {[%emt 00:00:52]} h6 {[%clk 01:22:46]} {[%emt 00:00:26]}
33. h4 {[%clk 00:24:45]} {[%emt 00:00:17]} Kh7 {[%clk 01:22:55]} {[%emt
00:00:22]} 34. h5 {[%clk 00:24:04]} {[%emt 00:01:10]} Qa8 {[%clk 01:23:05]}
{[%emt 00:00:20]} 35. Bd5 {[%clk 00:24:13]} {[%emt 00:00:21]} Qb8 {[%clk
01:22:54]} {[%emt 00:00:42]} 36. a5 {[%clk 00:24:21]} {[%emt 00:00:22]} Bc5
{[%clk 01:22:24]} {[%emt 00:00:59]} 37. e5 {[%clk 00:24:19]} {[%emt 00:00:32]}
Qf8 {[%clk 01:22:25]} {[%emt 00:00:30]} 38. Qxf8 {[%clk 00:23:57]} {[%emt
00:00:52]} Bxf8 {[%clk 01:22:48]} {[%emt 00:00:07]} 39. a6 {[%clk 00:24:22]}
{[%emt 00:00:05]} Bc5 {[%clk 01:23:10]} {[%emt 00:00:08]} 40. e6 {[%clk
00:24:48]} {[%emt 00:00:04]} g5 {[%clk 01:23:19]} {[%emt 00:00:21]} 41. e7
{[%clk 00:25:10]} {[%emt 00:00:08]} Bxe7 {[%clk 01:23:21]} {[%emt 00:00:28]} 42.
a7 {[%clk 00:25:36]} {[%emt 00:00:04]} g4 {[%clk 01:23:42]} {[%emt 00:00:09]}
43. a8=Q {[%clk 00:25:59]} {[%emt 00:00:07]} Bf8 {[%clk 01:24:04]} {[%emt
00:00:07]} 44. Qe8 {[%clk 00:26:00]} {[%emt 00:00:29]} Kg7 {[%clk 01:23:55]}
{[%emt 00:00:39]} 45. Qf7+ {[%clk 00:26:21]} {[%emt 00:00:09]} Kh8 {[%clk
01:24:19]} {[%emt 00:00:06]} 46. Qg8# {[%clk 00:26:10]} {[%emt 00:00:04]} 1-0

[Event "NJSK 2021 Meisjes A&B"]
[Site "Almelo, Netherlands"]
[Date "2021.08.03"]
[Round "3.2"]
[White "Den Heijer, Rolinde"]
[Black "Honkoop, Stella"]
[Result "1-0"]
[TimeControl "90min/40moves + 30sec/move"]
[WhiteElo "1483"]
[BlackElo "1573"]

1. e4 {[%clk 01:30:58]} {[%emt 00:00:01]} c5 {[%clk 01:30:52]} {[%emt
00:00:09]} 2. Nf3 {[%clk 01:31:24]} {[%emt 00:00:04]} Nc6 {[%clk 01:31:17]}
{[%emt 00:00:06]} 3. d4 {[%clk 01:31:47]} {[%emt 00:00:06]} cxd4 {[%clk
01:31:39]} {[%emt 00:00:07]} 4. Nxd4 {[%clk 01:32:12]} {[%emt 00:00:05]} Nf6
{[%clk 01:31:46]} {[%emt 00:00:23]} 5. Nc3 {[%clk 01:30:38]} {[%emt 00:02:04]}
e5 {[%clk 01:32:04]} {[%emt 00:00:13]} 6. Ndb5 {[%clk 01:29:36]} {[%emt
00:01:32]} d6 {[%clk 01:32:23]} {[%emt 00:00:11]} 7. Bg5 {[%clk 01:28:13]}
{[%emt 00:01:53]} a6 {[%clk 01:28:49]} {[%emt 00:04:04]} 8. Na3 {[%clk
01:27:49]} {[%emt 00:00:53]} b5 {[%clk 01:28:20]} {[%emt 00:01:00]} 9. Nd5
{[%clk 01:27:42]} {[%emt 00:00:36]} Be7 {[%clk 01:28:21]} {[%emt 00:00:29]} 10.
Bxf6 {[%clk 01:27:39]} {[%emt 00:00:32]} Bxf6 {[%clk 01:28:31]} {[%emt
00:00:20]} 11. c3 {[%clk 01:27:06]} {[%emt 00:01:04]} O-O {[%clk 01:25:16]}
{[%emt 00:03:45]} 12. Nc2 {[%clk 01:24:15]} {[%emt 00:03:21]} Bg5 {[%clk
01:18:25]} {[%emt 00:07:20]} 13. Nce3 {[%clk 01:19:26]} {[%emt 00:05:18]} Be6
{[%clk 01:13:02]} {[%emt 00:05:54]} 14. Bd3 {[%clk 01:10:42]} {[%emt 00:09:13]}
Rc8 {[%clk 01:12:56]} {[%emt 00:00:37]} 15. O-O {[%clk 01:08:31]} {[%emt
00:02:41]} Ne7 {[%clk 01:11:30]} {[%emt 00:01:57]} 16. Qh5 {[%clk 01:01:39]}
{[%emt 00:07:21]} Ng6 {[%clk 01:07:57]} {[%emt 00:04:04]} 17. g3 {[%clk
00:58:59]} {[%emt 00:03:10]} Rc6 {[%clk 00:58:38]} {[%emt 00:09:49]} 18. f4
{[%clk 00:54:09]} {[%emt 00:05:19]} exf4 {[%clk 00:52:38]} {[%emt 00:06:30]} 19.
gxf4 {[%clk 00:51:07]} {[%emt 00:03:32]} Bh6 {[%clk 00:51:49]} {[%emt
00:01:18]} 20. f5 {[%clk 00:46:21]} {[%emt 00:05:17]} Bxd5 {[%clk 00:40:00]}
{[%emt 00:12:20]} 21. Nxd5 {[%clk 00:45:06]} {[%emt 00:01:45]} Ne5 {[%clk
00:39:24]} {[%emt 00:01:07]} 22. f6 {[%clk 00:42:32]} {[%emt 00:03:03]} Ng6
{[%clk 00:34:26]} {[%emt 00:05:28]} 23. Rf3 {[%clk 00:36:57]} {[%emt 00:06:04]}
Rc5 {[%clk 00:27:41]} {[%emt 00:07:16]} 24. Raf1 {[%clk 00:32:59]} {[%emt
00:04:28]} Qd7 {[%clk 00:20:25]} {[%emt 00:07:47]} 25. b4 {[%clk 00:30:17]}
{[%emt 00:03:12]} Rc7 {[%clk 00:15:13]} {[%emt 00:05:43]} 26. Rg3 {[%clk
00:23:37]} {[%emt 00:07:09]} Kh8 {[%clk 00:13:01]} {[%emt 00:02:42]} 27. Rh3
{[%clk 00:22:38]} {[%emt 00:01:28]} Rg8 {[%clk 00:03:12]} {[%emt 00:10:20]} 28.
Kh1 {[%clk 00:20:39]} {[%emt 00:02:28]} Ne5 {[%clk 00:01:30]} {[%emt 00:02:13]}
29. Rg1 {[%clk 00:16:00]} {[%emt 00:05:08]} Ng6 {[%clk 00:01:56]} {[%emt
00:00:05]} 30. Nxc7 {[%clk 00:13:45]} {[%emt 00:02:45]} Qxc7 {[%clk 00:02:19]}
{[%emt 00:00:07]} 31. fxg7+ {[%clk 00:14:04]} {[%emt 00:00:10]} Rxg7 {[%clk
00:02:29]} {[%emt 00:00:20]} 32. Qxh6 {[%clk 00:14:20]} {[%emt 00:00:14]} Qxc3
{[%clk 00:02:18]} {[%emt 00:00:42]} 33. Qe3 {[%clk 00:13:36]} {[%emt 00:01:13]}
Qc8 {[%clk 00:01:30]} {[%emt 00:01:19]} 34. Rhg3 {[%clk 00:13:30]} {[%emt
00:00:35]} Qe6 {[%clk 00:01:18]} {[%emt 00:00:43]} 35. h4 {[%clk 00:13:04]}
{[%emt 00:00:55]} Rg8 {[%clk 00:00:46]} {[%emt 00:01:03]} 36. h5 {[%clk
00:12:59]} {[%emt 00:00:34]} Ne7 {[%clk 00:01:15]} {[%emt 00:00:03]} 37. Rxg8+
{[%clk 00:12:38]} {[%emt 00:00:50]} Nxg8 {[%clk 00:01:43]} {[%emt 00:00:02]} 38.
Qg3 {[%clk 00:12:43]} {[%emt 00:00:24]} 1-0

[Event "NJSK 2021 Meisjes A&B"]
[Site "Almelo, Netherlands"]
[Date "2021.08.03"]
[Round "3.3"]
[White "Zubair, Javeria Komal"]
[Black "De Zoeten, Cato"]
[Result "0-1"]
[TimeControl "90min/40moves + 30sec/move"]
[WhiteElo "1490"]
[BlackElo "1881"]

1. Nf3 {[%clk 01:30:58]} {[%emt 00:00:02]} Nf6 {[%clk 01:30:46]} {[%emt
00:00:14]} 2. d4 {[%clk 01:31:15]} {[%emt 00:00:13]} g6 {[%clk 01:30:51]}
{[%emt 00:00:24]} 3. Nc3 {[%clk 01:31:33]} {[%emt 00:00:12]} d5 {[%clk
01:26:19]} {[%emt 00:05:01]} 4. Bf4 {[%clk 01:28:55]} {[%emt 00:03:09]} Bg7
{[%clk 01:24:25]} {[%emt 00:02:25]} 5. e3 {[%clk 01:27:31]} {[%emt 00:01:54]}
c5 {[%clk 01:19:54]} {[%emt 00:05:01]} 6. Bb5+ {[%clk 01:21:07]} {[%emt
00:06:54]} Bd7 {[%clk 01:15:52]} {[%emt 00:04:32]} 7. O-O {[%clk 01:08:16]}
{[%emt 00:13:21]} O-O {[%clk 01:14:25]} {[%emt 00:01:57]} 8. Re1 {[%clk
01:01:28]} {[%emt 00:07:17]} Bxb5 {[%clk 01:01:36]} {[%emt 00:13:19]} 9. Nxb5
{[%clk 01:01:10]} {[%emt 00:00:48]} Nc6 {[%clk 01:01:42]} {[%emt 00:00:25]} 10.
Nc3 {[%clk 00:55:03]} {[%emt 00:06:37]} Rc8 {[%clk 01:00:13]} {[%emt 00:01:58]}
11. Rc1 {[%clk 00:52:56]} {[%emt 00:02:37]} Ne4 {[%clk 00:51:32]} {[%emt
00:09:10]} 12. Nxe4 {[%clk 00:49:18]} {[%emt 00:04:09]} dxe4 {[%clk 00:51:55]}
{[%emt 00:00:07]} 13. Ne5 {[%clk 00:45:33]} {[%emt 00:04:15]} cxd4 {[%clk
00:48:27]} {[%emt 00:03:58]} 14. Nxc6 {[%clk 00:45:43]} {[%emt 00:00:21]} Rxc6
{[%clk 00:43:31]} {[%emt 00:05:26]} 15. exd4 {[%clk 00:44:52]} {[%emt
00:01:20]} Bxd4 {[%clk 00:38:00]} {[%emt 00:06:00]} 16. c3 {[%clk 00:44:58]}
{[%emt 00:00:25]} Bf6 {[%clk 00:36:32]} {[%emt 00:01:57]} 17. Rxe4 {[%clk
00:43:57]} {[%emt 00:01:32]} Qa5 {[%clk 00:31:14]} {[%emt 00:05:48]} 18. a3
{[%clk 00:41:26]} {[%emt 00:03:01]} Rd8 {[%clk 00:30:19]} {[%emt 00:01:25]} 19.
Qe2 {[%clk 00:35:28]} {[%emt 00:06:28]} Qd5 {[%clk 00:27:57]} {[%emt 00:02:52]}
20. Re1 {[%clk 00:31:41]} {[%emt 00:04:17]} Rd7 {[%clk 00:26:07]} {[%emt
00:02:20]} 21. h3 {[%clk 00:30:27]} {[%emt 00:01:44]} Rb6 {[%clk 00:24:09]}
{[%emt 00:02:27]} 22. Be5 {[%clk 00:26:08]} {[%emt 00:04:50]} Qd2 {[%clk
00:22:00]} {[%emt 00:02:39]} 23. Bxf6 {[%clk 00:23:16]} {[%emt 00:03:22]} exf6
{[%clk 00:20:59]} {[%emt 00:01:31]} 24. Qf3 {[%clk 00:22:49]} {[%emt 00:00:57]}
Rd3 {[%clk 00:19:51]} {[%emt 00:01:38]} 25. Qg4 {[%clk 00:17:10]} {[%emt
00:06:09]} f5 {[%clk 00:16:16]} {[%emt 00:04:05]} 26. Re8+ {[%clk 00:17:12]}
{[%emt 00:00:28]} Kg7 {[%emt 00:00:02]} 27. Qc4 {[%clk 00:15:32]} {[%emt
00:02:09]} Rxb2 {[%clk 00:13:49]} {[%emt 00:03:26]} 28. R8e2 {[%clk 00:15:29]}
{[%emt 00:00:33]} Rb1 {[%clk 00:13:52]} {[%emt 00:00:27]} 29. Rxb1 {[%clk
00:08:46]} {[%emt 00:07:13]} Qxe2 {[%clk 00:14:18]} {[%emt 00:00:04]} 30. Qc5
{[%clk 00:08:25]} {[%emt 00:00:50]} b6 {[%clk 00:12:12]} {[%emt 00:02:36]} 31.
Qb4 {[%clk 00:07:13]} {[%emt 00:01:42]} Qc2 {[%clk 00:08:39]} {[%emt 00:04:03]}
32. c4 {[%clk 00:04:59]} {[%emt 00:02:45]} Rd4 {[%clk 00:04:20]} {[%emt
00:04:49]} 33. Qe1 {[%clk 00:03:52]} {[%emt 00:01:36]} Re4 {[%clk 00:04:05]}
{[%emt 00:00:46]} 34. Qf1 {[%emt 00:03:09]} Rxc4 {[%clk 00:03:20]} 35. Rb4
{[%clk 00:02:30]} {[%emt 00:00:28]} Rxb4 {[%clk 00:02:39]} {[%emt 00:01:11]} 36.
axb4 {[%clk 00:02:53]} {[%emt 00:00:06]} Qc3 {[%clk 00:02:55]} {[%emt
00:00:14]} 37. Qb1 {[%clk 00:03:14]} {[%emt 00:00:10]} a5 {[%clk 00:02:58]}
{[%emt 00:00:27]} 38. bxa5 {[%clk 00:03:04]} {[%emt 00:00:40]} bxa5 {[%clk
00:03:18]} {[%emt 00:00:10]} 39. Kh2 {[%clk 00:03:07]} {[%emt 00:00:26]} a4
{[%clk 00:03:23]} {[%emt 00:00:26]} 40. Qa2 {[%clk 00:03:05]} {[%emt 00:00:33]}
a3 {[%clk 00:03:18]} {[%emt 00:00:35]} 41. g4 {[%clk 00:01:33]} {[%emt
00:02:01]} fxg4 {[%clk 00:03:04]} {[%emt 00:00:44]} 42. hxg4 {[%clk 00:01:38]}
{[%emt 00:00:26]} Qb2 {[%clk 00:03:14]} {[%emt 00:00:20]} 0-1